bitfinex/quotes_SOLUSD_20241001
["timestamp","ask_amount","ask_price","bid_price","bid_amount"]
[1727770965856,6.3796,156.75,156.71,23.776884]
[1727770966173,6.3804,156.73,156.71,23.776884]
[1727770966475,6.3804,156.73,156.69,16.7125597]
[1727770966648,6.3812,156.71,156.69,0.8500597]
[1727770966971,15.6366,156.77,156.69,0.8500597]
[1727770966972,6.3816,156.7,156.69,0.8500597]
[1727770967871,6.3812,156.71,156.69,0.8500597]
[1727770969588,15.9504,156.74,156.69,0.8500597]
[1727770969589,6.70836865,156.7,156.69,0.8500597]
[1727770969794,6.3816,156.7,156.69,0.8500597]
[1727770985506,6.3812,156.71,156.69,0.8500597]
[1727770985675,15.9504,156.74,156.69,0.8500597]
[1727770985871,6.3816,156.7,156.69,0.8500597]
[1727770994614,6.3813,156.71,156.69,0.8500597]
[1727770994909,6.3809,156.72,156.69,0.8500597]
[1727770995108,38.63219061,156.77,156.69,0.8500597]
[1727770995414,6.3809,156.72,156.69,0.8500597]
[1727770995909,6.3816,156.7,156.69,0.8500597]
[1727771001191,6.70836865,156.7,156.69,0.8500597]
[1727771004923,6.3816,156.7,156.69,0.8500597]
[1727771015526,6.3813,156.71,156.69,0.8500597]
[1727771015704,6.3806,156.73,156.69,0.8500597]
[1727771015909,6.3806,156.73,156.69,2.1263022]
[1727771016223,6.70766865,156.72,156.69,0.8500597]
[1727771016404,6.3809,156.72,156.69,0.8500597]
[1727771019619,0.32676865,156.76,156.69,0.8500597]
[1727771019923,29.37710813,156.77,156.69,22.5748597]
[1727771020112,6.38,156.74,156.69,22.5748597]
[1727771021522,0.32676865,156.73,156.69,22.5748597]
[1727771021731,6.70716865,156.73,156.69,22.5748597]
[1727771021923,6.3804,156.73,156.69,22.5748597]
[1727771022808,6.3804,156.73,156.69,16.1929597]
[1727771028530,6.3804,156.73,156.69,22.5748597]
[1727771031914,22.99539061,156.77,156.69,16.1929597]
[1727771031915,6.70786865,156.72,156.69,16.1929597]
[1727771032237,6.3811,156.72,156.69,16.1929597]
[1727771038244,6.3804,156.73,156.7,1.27625827]
[1727771040748,6.3804,156.73,156.69,22.5748597]
[1727771041122,15.9472,156.77,156.7,25.05306063]
[1727771041434,6.38,156.74,156.7,30.158284]
[1727771041623,15.9472,156.77,156.7,30.158284]
[1727771041624,6.3796,156.75,156.7,30.158284]
[1727771042944,6.3793,156.76,156.72,6.3805]
[1727771043450,6.3793,156.76,156.72,23.776884]
[1727771044846,6.70636865,156.75,156.71,22.3335]
[1727771045032,6.3796,156.75,156.71,22.3335]
[1727771048332,0.32676865,156.74,156.69,16.1929597]
[1727771048526,0.32676865,156.77,156.69,16.1929597]
[1727771049149,6.3808,156.72,156.69,16.1929597]
[1727771062161,20.0,156.78,156.7,1.27625676]
[1727771062449,6.3787,156.77,156.72,23.776884]
[1727771062754,13.61247034,156.82,156.72,23.776884]
[1727771062755,13.61247034,156.82,156.72,25.05282581]
[1727771063052,6.3801,156.74,156.69,22.5745597]
[1727771063238,6.3808,156.72,156.69,16.1929597]
[1727771065253,15.9475,156.77,156.69,16.1929597]
[1727771065437,6.3804,156.73,156.69,16.1929597]
[1727771074042,6.3801,156.74,156.7,1.27619993]
[1727771074550,6.3801,156.74,156.7,7.65769993]
[1727771074744,6.3796,156.75,156.71,23.776884]
[1727771074950,6.3796,156.75,156.71,6.3811]
[1727771075140,6.3792,156.76,156.72,23.776884]
[1727771075350,6.3792,156.76,156.73,1.27595462]
[1727771075553,6.3787,156.77,156.73,1.27595462]
[1727771075846,6.3787,156.77,156.72,30.157584]
[1727771076243,6.3787,156.77,156.73,1.27588926]
[1727771078270,6.3787,156.77,156.72,30.157584]
[1727771079066,6.3792,156.76,156.72,30.157584]
[1727771080065,6.70656865,156.75,156.71,23.776884]
[1727771080252,6.70706865,156.74,156.7,15.9533]
[1727771080560,6.3804,156.73,156.69,22.5746597]
[1727771081359,0.32676865,156.72,156.69,0.8500597]
[1727771081563,6.3816,156.7,156.69,0.8500597]
[1727771083247,6.3812,156.71,156.69,0.8500597]
[1727771086179,6.3808,156.72,156.69,0.8500597]
[1727771088865,6.70806865,156.71,156.69,0.8500597]
[1727771089057,6.3813,156.71,156.69,0.8500597]
[1727771090383,6.3816,156.7,156.69,0.8500597]
[1727771090568,32.0019,156.76,156.69,0.8500597]
[1727771090767,6.3812,156.71,156.69,0.8500597]
[1727771092780,0.32676865,156.7,156.69,0.8500597]
[1727771093265,6.3812,156.71,156.69,0.8500597]
[1727771093674,0.32676865,156.7,156.69,0.8500597]
[1727771094663,6.3812,156.71,156.69,0.8500597]
[1727771095467,0.32676865,156.7,156.69,0.8500597]
[1727771095778,32.0019,156.76,156.69,0.8500597]
[1727771095985,6.3809,156.72,156.69,0.8500597]
[1727771098681,0.32676865,156.71,156.69,0.8500597]
[1727771098861,6.70806865,156.71,156.69,0.8500597]
[1727771099193,6.3813,156.71,156.69,0.8500597]
[1727771100280,0.32676865,156.7,156.69,0.8500597]
[1727771100577,6.3816,156.7,156.69,0.8500597]
[1727771106084,26.3816,156.7,156.69,0.8500597]
[1727771106286,26.3816,156.7,156.61,15.099]
[1727771106287,6.3833,156.66,156.62,23.776884]
[1727771107981,6.3829,156.67,156.62,30.161684]
[1727771108776,6.3824,156.68,156.63,20.20387472]
[1727771108976,6.3824,156.68,156.63,6.3843]
[1727771111986,6.3824,156.68,156.64,23.776884]
[1727771112163,0.32676865,156.67,156.62,22.3464]
[1727771112372,0.32676865,156.69,156.63,23.776884]
[1727771113175,6.3832,156.66,156.63,23.776884]
[1727771113878,15.9537,156.71,156.63,42.70406796]
[1727771114084,6.3812,156.71,156.66,6.3829]
[1727771114285,6.3812,156.71,156.67,6.3828]
[1727771114487,6.3812,156.71,156.68,23.776884]
[1727771115472,6.3809,156.72,156.68,23.776884]
[1727771115690,6.3804,156.73,156.68,31.43554969]
[1727771116187,6.3804,156.73,156.68,30.159284]
[1727771116677,6.3804,156.73,156.69,1.27621344]
[1727771117068,0.32676865,156.72,156.66,31.2793]
[1727771117279,0.32676865,156.72,156.66,15.3219]
[1727771117481,6.382,156.69,156.66,15.3219]
[1727771119599,6.382,156.69,156.65,6.1496]
[1727771119766,6.382,156.69,156.65,23.776884]
[1727771122485,0.32676865,156.73,156.65,23.776884]
[1727771122687,6.3815,156.71,156.67,23.776884]
[1727771124680,6.3808,156.72,156.67,30.159584]
[1727771124882,6.3808,156.72,156.68,1.27622949]
[1727771126403,0.32676865,156.71,156.66,23.776884]
[1727771126699,6.3823,156.69,156.66,23.776884]
[1727771126881,6.3824,156.68,156.65,15.9585]
[1727771131201,0.32676865,156.71,156.63,3.45501119]
[1727771131395,0.32676865,156.71,156.59,16.6607]
[1727771131396,6.3835,156.66,156.62,15.962]
[1727771132188,6.3837,156.65,156.61,6.3852]
[1727771132595,6.3837,156.65,156.62,23.776884]
[1727771133686,15.9537,156.71,156.63,1.27667045]
[1727771133886,6.3828,156.67,156.62,42.70446796]
[1727771135714,6.3828,156.67,156.64,23.776884]
[1727771135880,6.3828,156.67,156.65,1.27657899]
[1727771136386,6.3832,156.66,156.62,6.3848]
[1727771136595,6.3832,156.66,156.62,23.776884]
[1727771137201,6.3837,156.65,156.62,23.776884]
[1727771139710,15.556,156.7,156.63,1.27669629]
[1727771139897,15.556,156.7,156.64,23.776884]
[1727771139898,6.383,156.67,156.64,23.776884]
[1727771140094,6.383,156.67,156.65,1.27655759]
[1727771141097,15.9537,156.71,156.66,23.776884]
[1727771141403,6.382,156.69,156.66,23.776884]
[1727771141604,6.382,156.69,156.65,23.776884]
[1727771142793,6.3824,156.68,156.65,23.776884]
[1727771145309,6.382,156.7,156.65,23.776884]
[1727771145511,6.382,156.7,156.66,1.27641858]
[1727771146197,38.23227034,156.74,156.67,23.776884]
[1727771146391,6.3821,156.69,156.67,23.776884]
[1727771146810,6.3812,156.71,156.67,23.776884]
[1727771147017,6.3812,156.71,156.68,1.27627297]
[1727771147392,6.3812,156.71,156.67,23.776884]
[1727771149026,20.0,156.73,156.67,23.776884]
[1727771149206,6.3821,156.69,156.65,15.9583]
[1727771149403,6.3821,156.69,156.66,23.776884]
[1727771149800,0.32676865,156.72,156.66,23.776884]
[1727771150024,6.3824,156.68,156.66,23.776884]
[1727771151108,6.3824,156.68,156.63,18.93211208]
[1727771151428,6.3824,156.68,156.64,1.27644104]
[1727771151720,6.3824,156.68,156.64,20.20805312]
[1727771151923,6.382,156.7,156.64,20.20805312]
[1727771152227,6.382,156.7,156.65,23.776884]
[1727771152519,6.382,156.69,156.65,23.776884]
[1727771152918,6.382,156.69,156.67,23.776884]
[1727771154303,16.27926865,156.72,156.67,23.776884]
[1727771154506,6.3824,156.68,156.67,23.776884]
[1727771155622,20.0,156.73,156.67,23.776884]
[1727771155623,6.3819,156.7,156.67,23.776884]
[1727771155923,6.3822,156.69,156.67,23.776884]
[1727771157732,0.32676865,156.68,156.61,22.3482]
[1727771158033,20.0,156.71,156.61,15.963]
[1727771158034,6.3837,156.65,156.61,15.963]
[1727771159614,6.3837,156.65,156.62,23.776884]
[1727771160526,6.3833,156.66,156.62,23.776884]
[1727771160721,42.0307,156.71,156.62,23.776884]
[1727771160722,6.3829,156.67,156.64,23.776884]
[1727771161031,6.3829,156.67,156.65,1.27653719]
[1727771161517,6.3825,156.68,156.66,23.776884]
[1727771164540,6.3825,156.68,156.67,1.27647145]
[1727771164921,6.3825,156.68,156.64,23.776884]
[1727771165129,6.3829,156.67,156.64,23.776884]
[1727771168718,15.9536,156.71,156.64,23.776884]
[1727771168920,6.3825,156.68,156.64,23.776884]
[1727771170023,6.3825,156.68,156.66,23.776884]
[1727771170650,6.3825,156.68,156.64,6.3839]
[1727771170651,6.3824,156.68,156.64,6.3839]
[1727771170850,6.3824,156.68,156.65,23.776884]
[1727771173647,6.3828,156.67,156.64,23.776884]
[1727771174742,6.3825,156.68,156.64,23.776884]
[1727771174967,0.32676865,156.71,156.64,23.776884]
[1727771175120,6.3829,156.67,156.64,23.776884]
[1727771176846,15.955,156.69,156.6,22.3492]
[1727771177050,15.955,156.69,156.61,3.45888427]
[1727771177051,0.32676865,156.68,156.61,3.45888427]
[1727771177344,0.32676865,156.68,156.6,22.3492]
[1727771177550,6.3837,156.65,156.61,4.73550306]
[1727771177848,6.3837,156.65,156.6,22.3492]
[1727771178028,6.3837,156.65,156.61,3.4588878]
[1727771178339,6.3837,156.65,156.6,22.3492]
[1727771178648,6.3837,156.65,156.61,3.45884593]
[1727771178826,6.3837,156.65,156.6,22.3492]
[1727771179028,6.3837,156.65,156.61,27.23572786]
[1727771179337,6.3837,156.65,156.61,23.776884]
[1727771181546,6.3837,156.65,156.62,1.27673614]
[1727771181947,6.3837,156.65,156.61,23.776884]
[1727771183927,6.3837,156.65,156.62,1.27673594]
[1727771184543,6.3833,156.66,156.61,42.70330825]
[1727771186953,6.3833,156.66,156.61,30.162084]
[1727771191348,6.3841,156.64,156.61,23.776884]
[1727771191523,6.3833,156.66,156.62,18.92602425]
[1727771191728,6.3833,156.66,156.63,23.776884]
[1727771193156,6.3833,156.66,156.62,23.776884]
[1727771194072,6.3838,156.65,156.62,23.776884]
[1727771194865,15.9577,156.67,156.6,6.66818166]
[1727771195171,6.3848,156.62,156.58,6.3864]
[1727771195345,0.32676865,156.66,156.59,3.45859415]
[1727771195546,6.3845,156.63,156.6,3.45859415]
[1727771195766,6.3845,156.63,156.59,6.3859]
[1727771195969,6.384,156.64,156.6,11.12089994]
[1727771196175,6.384,156.64,156.6,7.6623047]
[1727771196682,6.3835,156.66,156.62,23.776884]
[1727771199476,6.3838,156.65,156.62,23.776884]
[1727771199690,6.3841,156.64,156.61,23.776884]
[1727771200574,6.3844,156.63,156.59,22.3508]
[1727771200776,6.3844,156.63,156.6,3.45911675]
[1727771200979,6.3844,156.63,156.59,22.3508]
[1727771201173,6.3844,156.63,156.6,3.45928132]
[1727771201375,6.3844,156.63,156.59,22.3508]
[1727771201571,6.3844,156.63,156.6,3.4593546]
[1727771201785,6.3844,156.63,156.6,23.776884]
[1727771203479,6.3852,156.61,156.6,23.776884]
[1727771203676,6.3844,156.63,156.6,23.776884]
[1727771203889,6.3844,156.63,156.59,23.776884]
[1727771204462,16.4498,156.68,156.6,1.27688009]
[1727771204664,6.3841,156.64,156.6,1.27688009]
[1727771204865,6.3836,156.65,156.62,23.776884]
[1727771205366,6.3832,156.66,156.61,30.161784]
[1727771205571,0.32676865,156.67,156.61,30.161784]
[1727771205861,6.3837,156.65,156.6,23.776884]
[1727771206079,6.3849,156.62,156.59,23.776884]
[1727771206278,6.3849,156.62,156.58,6.3865]
[1727771206485,6.3849,156.62,156.59,3.45939406]
[1727771206677,6.3849,156.62,156.58,6.3865]
[1727771206890,6.3849,156.62,156.59,3.45939495]
[1727771207190,6.3849,156.62,156.58,6.3865]
[1727771207495,6.3849,156.62,156.59,23.776884]
[1727771214999,16.4498,156.68,156.61,23.776884]
[1727771215183,6.3835,156.66,156.62,25.05360538]
[1727771215377,16.4498,156.68,156.63,6.3844]
[1727771215702,16.4498,156.68,156.64,1.27663746]
[1727771215703,6.3828,156.67,156.64,1.27663746]
[1727771215902,6.3828,156.67,156.65,23.776884]
[1727771216079,6.3828,156.67,156.62,42.70290825]
[1727771216995,6.3828,156.67,156.62,30.161684]
[1727771220207,20.32676865,156.71,156.62,30.161684]
[1727771220902,20.32676865,156.71,156.64,23.776884]
[1727771221212,20.0,156.71,156.64,23.776884]
[1727771222121,6.3825,156.68,156.64,23.776884]
[1727771223989,22.23947034,156.72,156.66,12.54122425]
[1727771224313,28.62027034,156.72,156.67,31.43558164]
[1727771224490,22.222,156.72,156.67,31.43558164]
[1727771224806,6.3813,156.71,156.67,31.43558164]
[1727771225198,6.3813,156.71,156.67,30.159284]
[1727771225703,6.3813,156.71,156.67,23.776884]
[1727771226295,6.3813,156.71,156.67,30.159684]
[1727771226505,6.3808,156.72,156.67,30.159684]
[1727771227295,6.3812,156.71,156.67,30.159684]
[1727771227789,6.3804,156.73,156.68,18.92352425]
[1727771227988,6.3804,156.73,156.69,37.59416811]
[1727771228304,6.3804,156.73,156.69,43.97606811]
[1727771228508,37.65357034,156.76,156.71,23.776884]
[1727771228509,6.38,156.74,156.71,23.776884]
[1727771228892,6.38,156.74,156.7,30.158484]
[1727771229085,6.3796,156.75,156.71,1.27597035]
[1727771229891,6.3796,156.75,156.7,42.69970825]
[1727771230213,6.3792,156.76,156.71,6.3812]
[1727771230514,6.3792,156.76,156.72,1.27590079]
[1727771231215,6.3792,156.76,156.73,23.776884]
[1727771231432,22.34017034,156.8,156.74,1.27578769]
[1727771232333,22.34017034,156.8,156.73,23.776884]
[1727771232535,22.66693899,156.8,156.73,23.776884]
[1727771233215,6.3787,156.77,156.73,23.776884]
[1727771236535,0.32676865,156.79,156.7,31.5679]
[1727771236727,6.3803,156.74,156.71,23.776884]
[1727771241420,6.3804,156.73,156.69,23.776884]
[1727771241627,6.3808,156.72,156.68,23.776884]
[1727771242130,16.27316865,156.78,156.67,15.9567]
[1727771242131,6.3812,156.71,156.67,15.9567]
[1727771242333,0.32676865,156.75,156.67,15.9567]
[1727771242534,6.3816,156.7,156.67,15.9567]
[1727771242724,6.3816,156.7,156.66,22.1134]
[1727771243525,6.3812,156.71,156.67,23.776884]
[1727771245214,6.3812,156.71,156.68,1.27624232]
[1727771247655,6.3812,156.71,156.67,23.776884]
[1727771251273,6.3812,156.71,156.68,1.27624276]
[1727771251463,6.3812,156.71,156.67,23.776884]
[1727771251641,6.3812,156.71,156.67,30.159584]
[1727771257353,6.3812,156.71,156.68,1.27620962]
[1727771258164,6.3812,156.71,156.69,23.776884]
[1727771258374,6.3812,156.71,156.67,30.159584]
[1727771258739,6.3812,156.71,156.69,23.776884]
[1727771258967,15.5141,156.74,156.67,23.776884]
[1727771259174,6.383,156.67,156.62,16.1285]
[1727771259343,15.9535,156.71,156.62,35.31607983]
[1727771259541,6.382,156.69,156.64,6.3838]
[1727771259939,15.9535,156.71,156.64,6.3838]
[1727771260246,6.3824,156.68,156.64,6.3838]
[1727771260572,6.3824,156.68,156.65,23.776884]
[1727771260762,6.3824,156.68,156.66,1.27640247]
[1727771261149,6.3824,156.68,156.65,23.776884]
[1727771261749,6.3821,156.69,156.65,23.776884]
[1727771267654,0.32676865,156.7,156.65,23.776884]
[1727771267855,6.3832,156.66,156.62,22.77485558]
[1727771268057,6.3838,156.65,156.61,15.9627]
[1727771269262,6.3838,156.65,156.63,23.776884]
[1727771269461,6.3838,156.65,156.64,1.27664966]
[1727771270083,16.4434,156.69,156.63,23.776884]
[1727771270264,6.3837,156.65,156.62,23.776884]
[1727771271163,6.3833,156.66,156.62,23.776884]
[1727771277969,6.384,156.64,156.62,23.776884]
[1727771278389,6.384,156.64,156.61,23.776884]
[1727771278579,6.384,156.64,156.6,23.776884]
[1727771279095,6.384,156.64,156.61,23.776884]
[1727771280606,6.384,156.64,156.62,1.27679713]
[1727771280977,6.3836,156.65,156.62,1.27679713]
[1727771281177,32.3989,156.69,156.62,1.27679713]
[1727771281178,6.3835,156.66,156.62,1.27679713]
[1727771281385,6.3836,156.65,156.62,1.27679713]
[1727771282207,6.3836,156.65,156.61,30.162084]
[1727771284504,32.3989,156.69,156.63,23.776884]
[1727771284709,32.3989,156.69,156.64,1.27657715]
[1727771284710,6.3831,156.67,156.64,1.27657715]
[1727771284917,16.4434,156.69,156.64,1.27657715]
[1727771285095,6.3825,156.68,156.63,30.161184]
[1727771286391,6.3828,156.67,156.63,30.161184]
[1727771289509,6.3824,156.68,156.64,1.27653796]
[1727771289815,6.3824,156.68,156.65,23.776884]
[1727771290013,6.3824,156.68,156.66,1.27647989]
[1727771291307,6.3824,156.68,156.65,23.776884]
[1727771291510,6.3829,156.67,156.64,23.776884]
[1727771291820,6.3829,156.67,156.63,6.3843]
[1727771291821,6.3829,156.67,156.63,23.776884]
[1727771299314,6.3829,156.67,156.63,30.161184]
[1727771306513,0.32676865,156.71,156.63,23.776884]
[1727771306715,16.5664,156.69,156.59,15.9645]
[1727771306930,6.3839,156.65,156.6,6.3855]
[1727771307218,6.3839,156.65,156.61,3.46210138]
[1727771307645,6.3839,156.65,156.6,6.3855]
[1727771307821,6.3839,156.65,156.61,3.46265299]
[1727771308021,6.3839,156.65,156.61,23.776884]
[1727771308840,6.3839,156.65,156.6,23.776884]
[1727771309055,6.3839,156.65,156.62,23.776884]
[1727771311021,0.32676865,156.68,156.62,23.776884]
[1727771311220,6.3841,156.64,156.61,23.776884]
[1727771313231,6.3837,156.65,156.61,23.776884]
[1727771321233,42.6408,156.64,156.58,6.63564263]
[1727771321453,42.6408,156.64,156.56,15.9681]
[1727771321454,6.3857,156.6,156.56,15.9681]
[1727771321753,6.3865,156.58,156.57,3.46242324]
[1727771321955,0.32676865,156.62,156.53,0.8500597]
[1727771322128,6.3874,156.56,156.53,0.8500597]
[1727771322544,7.758611,156.61,156.53,0.8500597]
[1727771322731,7.758611,156.61,156.54,3.46297854]
[1727771323049,6.3866,156.58,156.55,3.46297854]
[1727771323234,6.3866,156.58,156.54,27.23461982]
[1727771323435,6.3866,156.58,156.54,23.776884]
[1727771323652,6.3873,156.56,156.54,23.776884]
[1727771323951,6.387,156.57,156.54,23.776884]
[1727771324361,6.3865,156.58,156.54,23.776884]
[1727771326665,6.71366865,156.57,156.53,0.8500597]
[1727771326954,6.3874,156.56,156.53,0.8500597]
[1727771327935,6.3877,156.55,156.53,0.8500597]
[1727771329361,6.3881,156.54,156.53,0.8500597]
[1727771330033,6.4151,156.58,156.53,0.8500597]
[1727771330237,6.3878,156.55,156.53,0.8500597]
[1727771331255,6.3881,156.54,156.53,0.8500597]
[1727771334257,6.71486865,156.54,156.53,0.8500597]
[1727771334650,6.3881,156.54,156.53,0.8500597]
[1727771335158,506.3878,156.55,156.53,0.8500597]
[1727771336363,6.71486865,156.54,156.53,0.8500597]
[1727771336562,6.3881,156.54,156.53,0.8500597]
[1727771337169,6.71486865,156.54,156.53,0.8500597]
[1727771338543,500.0,156.55,156.53,0.8500597]
[1727771339943,506.3877,156.55,156.53,0.8500597]
[1727771343058,6.3881,156.54,156.53,0.8500597]
[1727771343446,6.71486865,156.54,156.53,0.8500597]
[1727771344077,6.3881,156.54,156.53,0.8500597]
[1727771348784,500.0,156.55,156.53,0.8500597]
[1727771351067,500.0,156.55,156.53,2.1276433]
[1727771351360,500.0,156.55,156.53,0.8500597]
[1727771351788,506.3878,156.55,156.53,0.8500597]
[1727771352887,500.0,156.55,156.53,0.8500597]
[1727771355783,500.0,156.55,156.54,53.03935244]
[1727771355990,500.0,156.55,156.54,58.14990825]
[1727771357259,500.0,156.55,156.54,6.3881]
[1727771357463,500.0,156.55,156.54,30.164984]
[1727771362668,500.0,156.55,156.54,31.4423694]
[1727771363086,500.0,156.55,156.54,30.164984]
[1727771366194,500.0,156.55,156.54,42.70620825]
[1727771366782,500.0,156.55,156.54,43.98352318]
[1727771367194,500.0,156.55,156.54,46.15915191]
[1727771368670,500.0,156.55,156.54,42.70620825]
[1727771369092,500.0,156.55,156.54,46.15869042]
[1727771369597,500.0,156.55,156.54,50.88827058]
[1727771370497,500.0,156.55,156.54,49.61097816]
[1727771371085,500.0,156.55,156.54,70.88824324]
[1727771371396,500.0,156.55,156.54,69.61097816]
[1727771371578,500.0,156.55,156.54,70.88819471]
[1727771372302,500.0,156.55,156.54,70.88819523]
[1727771372482,500.0,156.55,156.54,67.43571306]
[1727771372680,429.66384898,156.55,156.54,67.43571306]
[1727771374094,375.64156328,156.55,156.54,89.13251306]
[1727771374495,375.64156328,156.55,156.54,87.85529599]
[1727771374886,375.64156328,156.55,156.54,117.85529599]
[1727771375094,371.24126328,156.55,156.54,117.85529599]
[1727771375399,371.24126328,156.55,156.54,121.30124752]
[1727771375585,314.49079796,156.55,156.54,117.84895978]
[1727771375900,293.78971226,156.55,156.54,117.84895978]
[1727771376099,288.33861226,156.55,156.54,119.12603071]
[1727771376681,269.78252656,156.55,156.54,119.12603071]
[1727771376883,263.70342656,156.55,156.54,119.12603071]
[1727771377097,253.92032656,156.55,156.54,119.12603071]
[1727771377295,249.32892656,156.55,156.54,119.12603071]
[1727771377504,244.73752656,156.55,156.54,119.12603071]
[1727771377684,240.50742656,156.55,156.54,117.84895978]
[1727771378399,235.88872656,156.55,156.54,114.40300825]
[1727771378705,157.25277554,156.55,156.54,117.84500867]
[1727771378893,153.59497554,156.55,156.54,117.84399536]
[1727771379093,149.93717554,156.55,156.54,117.84399536]
[1727771380205,122.55638984,156.55,156.54,117.84399536]
[1727771381001,116.09708984,156.55,156.54,117.84399536]
[1727771381206,112.28838984,156.55,156.54,117.84399536]
[1727771381516,55.53792452,156.55,156.54,87.84399536]
[1727771381700,50.79612452,156.55,156.54,87.84399536]
[1727771381898,46.16892452,156.55,156.54,87.84399536]
[1727771382103,22.64723882,156.55,156.54,89.12103857]
[1727771382312,11.78093882,156.55,156.54,89.12103857]
[1727771382530,7.9e-05,156.55,156.54,89.12103857]
[1727771382900,6.6413,156.68,156.64,6.384]
[1727771383095,6.6413,156.68,156.65,1.2764677]
[1727771386797,21.677,156.69,156.65,1.2764677]
[1727771387001,15.2949,156.69,156.66,1.27639411]
[1727771388523,15.2949,156.69,156.65,6.3835]
[1727771389509,21.6769,156.69,156.65,6.3835]
[1727771391901,15.2949,156.69,156.63,15.9611]
[1727771392102,15.2949,156.69,156.65,30.160384]
[1727771393930,6.3815,156.71,156.66,1.27634556]
[1727771394118,6.3815,156.71,156.67,6.3826]
[1727771394315,6.3815,156.71,156.68,1.27620488]
[1727771394523,12.6266,156.72,156.68,1.27620488]
[1727771395023,6.3808,156.72,156.68,1.27620488]
[1727771395619,6.3808,156.72,156.67,6.3826]
[1727771395821,22.8361268,156.73,156.67,6.3826]
[1727771396010,6.3808,156.72,156.67,6.3826]
[1727771396213,6.3808,156.72,156.68,1.27617389]
[1727771396845,6.3808,156.72,156.67,6.3826]
[1727771402035,6.3808,156.72,156.68,7.65844334]
[1727771402822,29.2165268,156.73,156.68,7.65844334]
[1727771403140,6.3801,156.74,156.7,6.3816]
[1727771403333,6.3801,156.74,156.71,1.27599512]
[1727771404642,6.3222,156.76,156.71,1.27599512]
[1727771404828,6.3796,156.75,156.71,1.27599512]
[1727771405233,6.38,156.74,156.7,6.3816]
[1727771405918,6.38,156.74,156.71,1.27596763]
[1727771406530,6.38,156.74,156.7,6.3816]
[1727771410520,22.4850268,156.77,156.69,23.776884]
[1727771410727,6.3793,156.76,156.72,6.3805]
[1727771410921,6.3793,156.76,156.73,1.27587797]
[1727771411135,6.3796,156.75,156.73,1.27587797]
[1727771412045,6.3796,156.75,156.72,1.27586022]
[1727771412242,6.7631268,156.77,156.72,1.27586022]
[1727771412441,6.3788,156.77,156.73,6.3803]
[1727771412745,6.3788,156.77,156.74,1.27574224]
[1727771413741,6.3788,156.77,156.73,6.3803]
[1727771414345,6.3788,156.77,156.74,1.27574427]
[1727771415034,6.3788,156.77,156.73,6.3803]
[1727771415343,47.07090234,156.83,156.73,6.3803]
[1727771415344,16.3553,156.97,156.81,20.0]
[1727771415532,0.32676865,156.96,156.79,17.7609]
[1727771415718,6.44006865,156.95,156.8,23.776884]
[1727771415923,10.77022845,156.94,156.8,23.776884]
[1727771416146,6.1133,156.95,156.86,6.375]
[1727771416353,6.373,156.92,156.86,6.375]
[1727771416639,0.32676865,156.93,156.86,6.375]
[1727771416845,6.3722,156.94,156.87,7.64928421]
[1727771417036,6.3722,156.94,156.88,6.3742]
[1727771417632,6.3722,156.94,156.86,6.3748]
[1727771417826,6.3724,156.93,156.86,6.3748]
[1727771418149,6.3731,156.91,156.85,22.3136]
[1727771418742,24.98553474,156.95,156.85,22.3136]
[1727771418743,6.3726,156.93,156.86,31.42666961]
[1727771418948,6.3726,156.93,156.87,6.3746]
[1727771419247,6.3726,156.93,156.88,1.27456993]
[1727771419852,6.3726,156.93,156.87,6.3746]
[1727771420146,6.3726,156.92,156.87,6.3746]
[1727771429333,6.3723,156.93,156.88,7.64881047]
[1727771430351,6.3718,156.94,156.89,6.3738]
[1727771430929,16.3553,156.97,156.89,6.3738]
[1727771430930,6.3714,156.96,156.91,6.373]
[1727771431145,6.371,156.96,156.91,6.3729]
[1727771433340,6.3714,156.95,156.91,6.3729]
[1727771434164,6.3714,156.95,156.89,15.9339]
[1727771434454,6.3714,156.95,156.86,22.3124]